[Event "1st Turkish League 2017"]
[Site "Konya"]
[Date "2017.07.22"]
[Round "8"]
[White "Yelligedik, Murat"]
[Black "Okus, Melih"]
[Result "1/2-1/2"]
[ECO "B01"]
[WhiteElo "2014"]
[BlackElo "2041"]
[Annotator "NA"]
[PlyCount "191"]
[EventType "team-tourn"]
[EventCountry "TUR"]
[SourceTitle "playchess.com"]
[Source "ChessBase"]
[SourceQuality "1"]
[TimeControl "5400+30"]

1. e4 {[%emt 0:00:00]} d5 {[%emt 0:01:00]} 2. exd5 {[%emt 0:00:00]} Qxd5 {[%emt 0:00:30]} 3. Nc3 {[%emt 0:00:30]} Qd6 {[%emt 0:00:30]} 4. d4 {[%emt 0:00:30]} Nf6 {[%emt 0:00:30]} 5. g3 {[%emt 0:00:30] [%clk 1:31]} Bg4 {[%emt 0:03:30]} 6. Nf3 {[%emt 0:08:30]} a6 {[%emt 0:09:30]} 7. Bg2 {[%emt 0:00:30]} Nc6 {[%emt 0:01:30]} 8. Bf4 {[%emt 0:26:30]} Qb4 {[%emt 0:01:30]} 9. O-O {[%emt 0:15:30]} O-O-O {[%emt 0:04:30]} 10. Ne2 {[%emt 0:05:30]} Bxf3 {[%emt 0:25:30]} 11. Bxf3 {[%emt 0:00:30]} e5 {[%emt 0:00:00]} 12. c3 {[%emt 0:06:30]} Qb6 {[%emt 0:12:00]} 13. Bxc6 {[%emt 0:03:30]} exf4 {[%emt 0:00:30]} 14. Bg2 {[%emt 0:00:30]} g5 {[%emt 0:03:30]} 15. Qb3 {[%emt 0:05:30]} Qxb3 {[%emt 0:01:30]} 16. axb3 {[%emt 0:00:30]} Bd6 {[%emt 0:00:30]} 17. Ra5 {[%emt 0:03:30]} Rde8 {[%emt 0:04:30]} 18. Nc1 {[%emt 0:01:24]} h6 {[%emt 0:09:13]} 19. Rf5 {[%emt 0:02:30]} Ne4 {[%emt 0:00:02]} 20. Rxf7 {[%emt 0:05:39]} h5 {[%emt 0:00:15]} 21. b4 {[%emt 0:02:39]} Nd2 {[%emt 0:06:02]} 22. Rd1 {[%emt 0:00:46]} Nc4 {[%emt 0:00:30]} 23. Nd3 {[%emt 0:00:20]} Re2 {[%emt 0:01:28]} 24. Bf3 {[%emt 0:07:47]} Rc2 {[%emt 0:00:54]} 25. Re1 {[%emt 0:00:17]} Nxb2 {[%emt 0:03:12]} 26. Nc5 {[%emt 0:01:12]} Bxc5 {[%emt 0:02:46]} 27. bxc5 {[%emt 0:00:30]} Nd3 {[%emt 0:00:30]} 28. Ree7 {[%emt 0:01:39]} Rc1+ {[%emt 0:00:02]} 29. Kg2 {[%emt 0:00:11]} Ne1+ {[%emt 0:00:58]} 30. Kf1 {[%emt 0:00:30]} Nxf3+ {[%emt 0:00:30]} 31. Ke2 {[%emt 0:00:04]} Re1+ {[%emt 0:01:56]} 32. Kxf3 {[%emt 0:00:30]} Rxe7 {[%emt 0:00:30]} 33. Rxe7 {[%emt 0:00:00]} fxg3 {[%emt 0:01:08]} 34. Kxg3 {[%emt 0:00:41]} a5 {[%emt 0:00:16]} 35. Re5 {[%emt 0:01:48]} Rg8 {[%emt 0:01:12]} 36. Kf3 {[%emt 0:00:23]} Kd7 {[%emt 0:01:08]} 37. c6+ {[%emt 0:00:11]} Kxc6 {[%emt 0:00:25]} 38. Rxa5 {[%emt 0:00:01]} b5 {[%emt 0:02:01]} 39. c4 {[%emt 0:01:25]} bxc4 {[%emt 0:01:52]} 40. Rc5+ {[%emt 0:00:30]} Kd6 {[%emt 0:00:00]} 41. Rxc4 {[%emt 0:00:00]} Rf8+ {[%emt 0:00:55]} 42. Ke3 {[%emt 0:00:47]} g4 {[%emt 0:00:15]} 43. Rc5 {[%emt 0:01:07]} Rf3+ {[%emt 0:00:01]} 44. Ke4 {[%emt 0:00:33]} Rh3 {[%emt 0:00:26]} 45. f4 {[%emt 0:00:01]} gxf3 {[%emt 0:02:34]} 46. Rf5 {[%emt 0:00:32]} Rxh2 {[%emt 0:00:36]} 47. Rf6+ {[%emt 0:00:05]} Ke7 {[%emt 0:00:30]} 48. Rxf3 {[%emt 0:00:03]} Ke6 {[%emt 0:00:33]} 49. d5+ {[%emt 0:00:36]} Ke7 {[%emt 0:00:13]} 50. Rc3 {[%emt 0:00:53]} Kd7 {[%emt 0:00:28]} 51. Rc6 {[%emt 0:00:35]} Re2+ {[%emt 0:00:25]} 52. Kd4 {[%emt 0:00:30]} Rd2+ {[%emt 0:00:33]} 53. Ke5 {[%emt 0:00:37]} Re2+ {[%emt 0:00:41]} 54. Kd4 {[%emt 0:00:35]} h4 {[%emt 0:00:59]} 55. Rh6 {[%emt 0:00:07]} Rh2 {[%emt 0:00:05]} 56. Kc5 {[%emt 0:01:01]} h3 {[%emt 0:00:40]} 57. Rh7+ {[%emt 0:00:13]} Kd8 {[%emt 0:00:32]} 58. Rh8+ {[%emt 0:00:56]} Ke7 {[%emt 0:00:05]} 59. Rh7+ {[%emt 0:00:15]} Kf6 {[%emt 0:00:27]} 60. Kd4 {[%emt 0:01:00]} Rh1 {[%emt 0:00:31]} 61. Kc3 {[%emt 0:00:06]} h2 {[%emt 0:00:21]} 62. Kb2 {[%emt 0:00:21]} Ke5 {[%emt 0:01:02]} 63. Rh5+ {[%emt 0:00:07]} Kf4 {[%emt 0:00:22]} 64. Rh7 {[%emt 0:00:25]} Ke4 {[%emt 0:00:53]} 65. Rh5 {[%emt 0:00:12]} Kf3 {[%emt 0:00:16]} 66. Rh7 {[%emt 0:00:24]} Kg2 {[%emt 0:00:24]} 67. Rg7+ {[%emt 0:00:06]} Kf2 {[%emt 0:00:30]} 68. Rh7 {[%emt 0:01:05]} Ke3 {[%emt 0:00:19]} 69. Rh3+ {[%emt 0:00:18]} Kd4 {[%emt 0:00:30]} 70. Rh5 {[%emt 0:00:00]} Kc4 {[%emt 0:00:12]} 71. Ka2 {[%emt 0:00:10]} Kc5 {[%emt 0:00:56]} 72. Kb2 {[%emt 0:00:14]} Kc4 {[%emt 0:00:54]} 73. Ka2 {[%emt 0:00:04]} Rc1 {[%emt 0:00:33]} 74. Rxh2 {[%emt 0:00:08]} Kxd5 {[%emt 0:00:27]} 75. Kb2 {[%emt 0:00:08]} Rc5 {[%emt 0:00:13]} 76. Rh4 {[%emt 0:00:50]} Kc6 {[%emt 0:00:27]} 77. Kb3 {[%emt 0:00:00]} Kb6 {[%emt 0:00:44]} 78. Rh6+ {[%emt 0:00:19]} Kb5 {[%emt 0:00:16]} 79. Rh4 {[%emt 0:00:09]} Rg5 {[%emt 0:00:36]} 80. Rh3 {[%emt 0:01:01]} Rg4 {[%emt 0:00:11]} 81. Rh5+ {[%emt 0:00:25]} c5 {[%emt 0:00:05]} 82. Rh3 {[%emt 0:00:30]} Rb4+ {[%emt 0:00:30]} 83. Kc3 {[%emt 0:00:30]} Ra4 {[%emt 0:00:00]} 84. Kb2 {[%emt 0:02:33]} Rb4+ {[%emt 0:00:36]} 85. Kc2 {[%emt 0:00:10]} Ra4 {[%emt 0:00:08]} 86. Kb3 {[%emt 0:01:27]} c4+ {[%emt 0:00:43]} 87. Kb2 {[%emt 0:00:01]} Kb4 {[%emt 0:00:00]} 88. Rh8 {[%emt 0:00:40]} c3+ {[%emt 0:00:42]} 89. Kb1 {[%emt 0:01:31]} Kb3 {[%emt 0:01:35]} 90. Rb8+ {[%emt 0:00:07]} Kc4 {[%emt 0:00:00]} 91. Rc8+ {[%emt 0:00:16]} Kd3 {[%emt 0:00:05]} 92. Rd8+ {[%emt 0:00:06]} Rd4 {[%emt 0:00:57]} 93. Rxd4+ {[%emt 0:00:30]} Kxd4 {[%emt 0:00:00]} 94. Kc2 {[%emt 0:00:07]} Kc4 {[%emt 0:00:00]} 95. Kc1 {[%emt 0:00:14]} Kb3 {[%emt 0:00:07]} 96. Kb1 {[%emt 0:00:00]} 1/2-1/2

[Event "1st Turkish League 2017"]
[Site "Konya"]
[Date "2017.07.22"]
[Round "8"]
[White "Gulbeyaz, Emir"]
[Black "Cansun, Can Alp"]
[Result "1-0"]
[ECO "B41"]
[WhiteElo "1952"]
[BlackElo "1959"]
[Annotator "NA"]
[PlyCount "87"]
[EventType "team-tourn"]
[EventCountry "TUR"]
[SourceTitle "playchess.com"]
[Source "ChessBase"]
[SourceQuality "1"]
[TimeControl "5400+30"]

1. e4 {[%emt 0:00:00]} c5 {[%emt 0:00:00]} 2. Nf3 {[%emt 0:00:00]} e6 {[%emt 0:00:00]} 3. d4 {[%emt 0:00:00]} cxd4 {[%emt 0:00:00]} 4. Nxd4 {[%emt 0:00:00]} a6 {[%emt 0:00:30]} 5. c4 {[%emt 0:00:30]} Nf6 {[%emt 0:00:30]} 6. Nc3 {[%emt 0:00:30]} Qc7 {[%emt 0:00:30]} 7. Be3 {[%emt 0:00:30]} Nc6 {[%emt 0:01:30] [%clk 1:30]} 8. Be2 {[%emt 0:02:30]} Bb4 {[%emt 0:01:30]} 9. f3 {[%emt 0:01:30]} O-O {[%emt 0:04:30]} 10. O-O {[%emt 0:00:30]} d6 {[%emt 0:03:30]} 11. Rc1 {[%emt 0:01:30]} Bc5 {[%emt 0:01:30]} 12. Qd2 {[%emt 0:00:30]} Nxd4 {[%emt 0:03:30]} 13. Bxd4 {[%emt 0:00:30]} e5 {[%emt 0:01:30]} 14. Bxc5 {[%emt 0:00:30]} Qxc5+ {[%emt 0:00:00]} 15. Kh1 {[%emt 0:00:30]} Be6 {[%emt 0:01:00]} 16. Rfd1 {[%emt 0:01:30]} Rfd8 {[%emt 0:00:30]} 17. Na4 {[%emt 0:02:30]} Qc6 {[%emt 0:02:30]} 18. Qb4 {[%emt 0:01:30]} Rac8 {[%emt 0:06:30]} 19. Rc3 {[%emt 0:05:30]} a5 {[%emt 0:35:30]} 20. Qa3 {[%emt 0:01:30]} Qa6 {[%emt 0:03:30]} 21. b3 {[%emt 0:06:30]} h5 {[%emt 0:15:34]} 22. Rcd3 {[%emt 0:01:30]} b5 {[%emt 0:04:23]} 23. Rxd6 {[%emt 0:13:30]} Rxd6 {[%emt 0:00:30]} 24. Rxd6 {[%emt 0:00:00]} Qa7 {[%emt 0:00:00]} 25. Nb6 {[%emt 0:00:00]} Rb8 {[%emt 0:07:13]} 26. c5 {[%emt 0:00:30]} Ne8 {[%emt 0:03:12]} 27. Rd1 {[%emt 0:01:30]} b4 {[%emt 0:04:00]} 28. Qc1 {[%emt 0:00:30]} Qe7 {[%emt 0:00:31]} 29. Nd5 {[%emt 0:01:30]} Qh4 {[%emt 0:00:28]} 30. g3 {[%emt 0:00:30]} Qd8 {[%emt 0:00:37]} 31. c6 {[%emt 0:00:30]} Bxd5 {[%emt 0:00:20]} 32. exd5 {[%emt 0:00:30]} Qd6 {[%emt 0:00:30]} 33. Bc4 {[%emt 0:01:30]} Rd8 {[%emt 0:00:34]} 34. Qe3 {[%emt 0:00:30]} Nc7 {[%emt 0:00:31]} 35. Kg2 {[%emt 0:00:30]} g6 {[%emt 0:00:27]} 36. f4 {[%emt 0:01:30]} Re8 {[%emt 0:00:38]} 37. f5 {[%emt 0:01:30]} e4 {[%emt 0:00:52]} 38. fxg6 {[%emt 0:00:00]} fxg6 {[%emt 0:00:00]} 39. Qf4 {[%emt 0:01:00]} Re5 {[%emt 0:00:39]} 40. Rf1 {[%emt 0:06:30]} Nxd5 {[%emt 0:00:30]} 41. Qf7+ {[%emt 0:00:30]} Kh8 {[%emt 0:00:02]} 42. Bxd5 {[%emt 0:00:00]} Qxd5 {[%emt 0:00:57]} 43. Qf8+ {[%emt 0:00:00]} Qg8 {[%emt 0:00:33]} 44. Qh6+ {[%emt 0:00:00]} 1-0

[Event "1st Turkish League 2017"]
[Site "Konya"]
[Date "2017.07.22"]
[Round "8"]
[White "Yilmaz, Ezgi"]
[Black "Gokbulut, Julia"]
[Result "0-1"]
[ECO "C03"]
[WhiteElo "1836"]
[BlackElo "1997"]
[Annotator "NA"]
[PlyCount "110"]
[EventType "team-tourn"]
[EventCountry "TUR"]
[SourceTitle "playchess.com"]
[Source "ChessBase"]
[SourceQuality "1"]
[TimeControl "5400+30"]

1. e4 {[%emt 0:01:30]} e6 {[%emt 0:00:00]} 2. d4 {[%emt 0:00:30]} d5 {[%emt 0:00:30]} 3. Nd2 {[%emt 0:00:30]} h6 {[%emt 0:00:30]} 4. Ngf3 {[%emt 0:00:30]} Nf6 {[%emt 0:00:30] [%clk 1:31]} 5. e5 {[%emt 0:02:30]} Nfd7 {[%emt 0:00:30]} 6. Bd3 {[%emt 0:00:30]} c5 {[%emt 0:00:30]} 7. c3 {[%emt 0:00:30]} Nc6 {[%emt 0:00:00]} 8. b3 {[%emt 0:07:30]} cxd4 {[%emt 0:01:00]} 9. cxd4 {[%emt 0:04:30]} g5 {[%emt 0:02:30]} 10. Bb2 {[%emt 0:05:30]} g4 {[%emt 0:09:30]} 11. Ng1 {[%emt 0:00:30]} Rg8 {[%emt 0:03:30]} 12. a3 {[%emt 0:05:30]} Qg5 {[%emt 0:04:30]} 13. Nf1 {[%emt 0:03:30]} f6 {[%emt 0:07:30]} 14. exf6 {[%emt 0:10:30]} Nxf6 {[%emt 0:02:30]} 15. Ng3 {[%emt 0:09:30]} Bd7 {[%emt 0:02:30]} 16. h4 {[%emt 0:04:30]} Qg7 {[%emt 0:07:30]} 17. N1e2 {[%emt 0:00:30]} Bd6 {[%emt 0:00:30]} 18. Qd2 {[%emt 0:02:30]} O-O-O {[%emt 0:03:30]} 19. b4 {[%emt 0:09:30]} Kb8 {[%emt 0:01:30]} 20. b5 {[%emt 0:10:28]} Ne7 {[%emt 0:00:30]} 21. a4 {[%emt 0:02:04]} Nf5 {[%emt 0:05:30]} 22. Ba3 {[%emt 0:04:10]} Bc7 {[%emt 0:04:30]} 23. Rc1 {[%emt 0:01:49]} Bc8 {[%emt 0:04:30]} 24. a5 {[%emt 0:02:25]} Nxg3 {[%emt 0:01:30]} 25. fxg3 {[%emt 0:01:17]} Ne4 {[%emt 0:06:30]} 26. Bxe4 {[%emt 0:00:50]} dxe4 {[%emt 0:00:00]} 27. O-O {[%emt 0:00:17]} Rd5 {[%emt 0:04:00]} 28. b6 {[%emt 0:07:03]} axb6 {[%emt 0:02:30]} 29. axb6 {[%emt 0:00:03]} Bxb6 {[%emt 0:00:30]} 30. Qf4+ {[%emt 0:00:19]} e5 {[%emt 0:02:30]} 31. Qxe4 {[%emt 0:00:34]} Rgd8 {[%emt 0:06:39]} 32. Bc5 {[%emt 0:03:02]} Bxc5 {[%emt 0:00:49]} 33. Rxc5 {[%emt 0:00:28]} Rxc5 {[%emt 0:01:35]} 34. dxc5 {[%emt 0:00:02]} Qc7 {[%emt 0:00:08]} 35. Qe3 {[%emt 0:00:45]} Rd5 {[%emt 0:03:51]} 36. Rc1 {[%emt 0:00:20]} Qc6 {[%emt 0:00:45]} 37. Kh2 {[%emt 0:01:13]} h5 {[%emt 0:00:18]} 38. Rc4 {[%emt 0:00:35]} b5 {[%emt 0:02:41]} 39. Rc1 {[%emt 0:00:02]} Bb7 {[%emt 0:00:51]} 40. Qf2 {[%emt 0:00:43]} Rd8 {[%emt 0:00:34]} 41. Rg1 {[%emt 0:00:35]} b4 {[%emt 0:01:08]} 42. Nc1 {[%emt 0:00:27]} Qd5 {[%emt 0:01:43]} 43. Qe3 {[%emt 0:00:47]} Qd4 {[%emt 0:02:02]} 44. Qg5 {[%emt 0:00:10]} Qd5 {[%emt 0:01:10]} 45. Qxh5 {[%emt 0:00:43]} b3 {[%emt 0:00:23]} 46. Qf5 {[%emt 0:00:29]} b2 {[%emt 0:00:31]} 47. Ne2 {[%emt 0:00:37]} Qe4 {[%emt 0:00:58]} 48. Qg5 {[%emt 0:00:34]} Re8 {[%emt 0:01:24]} 49. Nc3 {[%emt 0:00:26]} Qd4 {[%emt 0:00:56]} 50. Qg6 {[%emt 0:00:34]} Rd8 {[%emt 0:00:34]} 51. Ne2 {[%emt 0:00:32]} Qxc5 {[%emt 0:00:44]} 52. Re1 {[%emt 0:00:33]} Qf2 {[%emt 0:00:38]} 53. Rg1 {[%emt 0:00:29]} Qxe2 {[%emt 0:00:41]} 54. h5 {[%emt 0:00:30]} Qe4 {[%emt 0:00:56]} 55. Qb6 {[%emt 0:00:20]} Rd2 {[%emt 0:00:20]} 0-1

[Event "1st Turkish League 2017"]
[Site "Konya"]
[Date "2017.07.22"]
[Round "8"]
[White "Erece, Ece Alkim"]
[Black "Ozbek, Busra"]
[Result "1-0"]
[ECO "B09"]
[WhiteElo "1829"]
[BlackElo "1796"]
[Annotator "NA"]
[PlyCount "71"]
[EventType "team-tourn"]
[EventCountry "TUR"]
[SourceTitle "playchess.com"]
[Source "ChessBase"]
[SourceQuality "1"]
[TimeControl "5400+30"]

1. e4 {[%emt 0:00:00]} d6 {[%emt 0:02:00]} 2. d4 {[%emt 0:00:00]} Nf6 {[%emt 0:00:30]} 3. Nc3 {[%emt 0:00:00]} g6 {[%emt 0:00:30]} 4. f4 {[%emt 0:00:00]} Bg7 {[%emt 0:00:30]} 5. Nf3 {[%emt 0:00:30]} O-O {[%emt 0:01:30]} 6. e5 {[%emt 0:00:30] [%clk 1:32]} Nfd7 {[%emt 0:08:30]} 7. h4 {[%emt 0:02:30]} c5 {[%emt 0:04:30]} 8. h5 {[%emt 0:02:30]} cxd4 {[%emt 0:01:30]} 9. hxg6 {[%emt 0:02:30]} hxg6 {[%emt 0:10:30]} 10. Qxd4 {[%emt 0:02:30]} dxe5 {[%emt 0:11:30]} 11. fxe5 {[%emt 0:01:30]} Nxe5 {[%emt 0:00:30]} 12. Qh4 {[%emt 0:00:30]} Nxf3+ {[%emt 0:00:00]} 13. gxf3 {[%emt 0:00:30]} f5 {[%emt 0:01:00]} 14. Qh7+ {[%emt 0:04:30]} Kf7 {[%emt 0:00:30]} 15. Rg1 {[%emt 0:00:00]} Qb6 {[%emt 0:10:30]} 16. Bc4+ {[%emt 0:15:00]} Ke8 {[%emt 0:00:30]} 17. Rxg6 {[%emt 0:11:30]} Bxc3+ {[%emt 0:00:30]} 18. bxc3 {[%emt 0:00:30]} Qc5 {[%emt 0:03:30]} 19. Bg5 {[%emt 0:04:30]} Nc6 {[%emt 0:05:30]} 20. Rg7 {[%emt 0:04:30]} Kd8 {[%emt 0:16:30]} 21. O-O-O+ {[%emt 0:03:30]} Kc7 {[%emt 0:03:50]} 22. Bxe7 {[%emt 0:02:30]} Nxe7 {[%emt 0:00:48]} 23. Rxe7+ {[%emt 0:00:30]} Kb8 {[%emt 0:00:22]} 24. Qg7 {[%emt 0:01:30]} a5 {[%emt 0:05:45]} 25. Qxf8 {[%emt 0:05:30]} Qxc4 {[%emt 0:00:17]} 26. Re8 {[%emt 0:00:30]} Ka7 {[%emt 0:03:07]} 27. Rdd8 {[%emt 0:04:30]} Qf1+ {[%emt 0:00:29]} 28. Kb2 {[%emt 0:01:30]} Qb5+ {[%emt 0:00:40]} 29. Ka3 {[%emt 0:00:30]} Qb1 {[%emt 0:04:19]} 30. Qc5+ {[%emt 0:02:30]} b6 {[%emt 0:02:00]} 31. Qc7+ {[%emt 0:02:30]} Ka6 {[%emt 0:00:08]} 32. Qc4+ {[%emt 0:00:30]} Ka7 {[%emt 0:00:32]} 33. Re7+ {[%emt 0:01:30]} Bb7 {[%emt 0:00:30]} 34. Rxb7+ {[%emt 0:00:00]} Kxb7 {[%emt 0:00:22]} 35. Qd5+ {[%emt 0:00:00]} Kc7 {[%emt 0:00:23]} 36. Qd7# {[%emt 0:02:30]} 1-0

[Event "1st Turkish League 2017"]
[Site "Konya"]
[Date "2017.07.22"]
[Round "8"]
[White "Demirtas, Hafize"]
[Black "Sahin, Hayrun Nisa"]
[Result "0-1"]
[ECO "C10"]
[WhiteElo "1676"]
[BlackElo "1576"]
[Annotator "NA"]
[PlyCount "88"]
[EventType "team-tourn"]
[EventCountry "TUR"]
[SourceTitle "playchess.com"]
[Source "ChessBase"]
[SourceQuality "1"]
[TimeControl "5400+30"]

1. e4 {[%emt 0:00:00]} e6 {[%emt 0:02:00]} 2. d4 {[%emt 0:00:00]} d5 {[%emt 0:00:30]} 3. Nd2 {[%emt 0:00:30]} dxe4 {[%emt 0:00:30]} 4. Nxe4 {[%emt 0:00:30] [%clk 1:30]} b6 {[%emt 0:02:30]} 5. Bb5+ {[%emt 0:05:30]} c6 {[%emt 0:05:30]} 6. Ba4 {[%emt 0:04:30]} Bb7 {[%emt 0:01:30]} 7. Nf3 {[%emt 0:04:30]} Nd7 {[%emt 0:05:30]} 8. Bf4 {[%emt 0:04:30]} Ndf6 {[%emt 0:04:30]} 9. Ned2 {[%emt 0:08:30]} Ne7 {[%emt 0:10:30]} 10. O-O {[%emt 0:02:30]} Ng6 {[%emt 0:04:30]} 11. Bg3 {[%emt 0:05:30]} Bd6 {[%emt 0:01:30]} 12. Ne5 {[%emt 0:02:30]} b5 {[%emt 0:05:30]} 13. Bb3 {[%emt 0:01:30]} c5 {[%emt 0:01:30]} 14. Nxg6 {[%emt 0:00:30]} hxg6 {[%emt 0:00:00]} 15. dxc5 {[%emt 0:01:30]} Bxg3 {[%emt 0:14:00]} 16. hxg3 {[%emt 0:15:30]} Qd4 {[%emt 0:02:30]} 17. Qe2 {[%emt 0:04:30]} Qxc5 {[%emt 0:01:30]} 18. a4 {[%emt 0:01:30]} a6 {[%emt 0:05:30]} 19. Rfe1 {[%emt 0:05:30]} Qc6 {[%emt 0:03:30]} 20. f3 {[%emt 0:04:30]} Qc5+ {[%emt 0:10:36]} 21. Qe3 {[%emt 0:05:30]} Qd6 {[%emt 0:02:09]} 22. Nf1 {[%emt 0:00:30]} Qc6 {[%emt 0:00:53]} 23. Re2 {[%emt 0:02:09]} b4 {[%emt 0:02:00]} 24. a5 {[%emt 0:01:16]} O-O {[%emt 0:04:18]} 25. Qd4 {[%emt 0:03:54]} Qb5 {[%emt 0:03:05]} 26. Re5 {[%emt 0:03:41]} Qd7 {[%emt 0:02:37]} 27. Qxb4 {[%emt 0:01:37]} Rac8 {[%emt 0:01:04]} 28. c3 {[%emt 0:02:01]} Qc7 {[%emt 0:00:31]} 29. Re3 {[%emt 0:00:45]} Rfd8 {[%emt 0:00:59]} 30. Rd1 {[%emt 0:02:10]} Rxd1 {[%emt 0:00:55]} 31. Bxd1 {[%emt 0:00:17]} Nd5 {[%emt 0:00:03]} 32. Qd4 {[%emt 0:03:13]} Nxe3 {[%emt 0:00:32]} 33. Nxe3 {[%emt 0:00:16]} Qxa5 {[%emt 0:01:25]} 34. Nc4 {[%emt 0:01:51]} Qc5 {[%emt 0:00:09]} 35. Nd6 {[%emt 0:00:59]} Qxd4+ {[%emt 0:00:39]} 36. cxd4 {[%emt 0:00:13]} Rc1 {[%emt 0:00:03]} 37. Nxb7 {[%emt 0:02:06]} Rxd1+ {[%emt 0:00:02]} 38. Kf2 {[%emt 0:00:34]} Rd2+ {[%emt 0:00:30]} 39. Ke3 {[%emt 0:00:00]} Rxb2 {[%emt 0:00:23]} 40. Nc5 {[%emt 0:00:12]} a5 {[%emt 0:00:30]} 41. Kd3 {[%emt 0:00:00]} Rxg2 {[%emt 0:00:00]} 42. Kc4 {[%emt 0:00:41]} Rxg3 {[%emt 0:00:00]} 43. Kb5 {[%emt 0:00:30]} Rxf3 {[%emt 0:00:30]} 44. Kxa5 {[%emt 0:00:00]} g5 {[%emt 0:00:00]} 0-1

[Event "1st Turkish League 2017"]
[Site "Konya"]
[Date "2017.07.22"]
[Round "8"]
[White "Oncu, Tugce"]
[Black "Yorgun, Yaren Naz"]
[Result "0-1"]
[ECO "C17"]
[WhiteElo "1664"]
[BlackElo "1733"]
[Annotator "NA"]
[PlyCount "70"]
[EventType "team-tourn"]
[EventCountry "TUR"]
[SourceTitle "playchess.com"]
[Source "ChessBase"]
[SourceQuality "1"]
[TimeControl "5400+30"]

1. e4 e6 2. d4 d5 3. Nc3 Bb4 4. e5 c5 5. Bd2 Ne7 6. Nb5 Bxd2+ 7. Qxd2 O-O 8. Nf3 a6 9. Nd6 cxd4 10. Nxd4 Nbc6 11. f4 Nxd4 12. Qxd4 Nc6 13. Qf2 f6 14. Qg3 fxe5 15. fxe5 Qa5+ 16. c3 Qb6 17. b3 Rd8 18. Nxc8 Raxc8 19. Kd2 d4 20. c4 Qa5+ 21. Kd1 Nxe5 22. b4 Qa4+ 23. Qb3 Qc6 24. Rc1 Ng4 25. Qg3 Ne3+ 26. Kd2 Qa4 27. Bd3 Qxb4+ 28. Ke2 Qb2+ 29. Kf3 Rf8+ 30. Ke4 Nf5 31. Qg4 Qb6 32. Rhe1 Nd6+ 33. Ke5 Qc5+ 34. Kxe6 Rce8+ 35. Kd7 Qc6# 0-1

[Event "1st Turkish League 2017"]
[Site "Konya"]
[Date "2017.07.23"]
[Round "9"]
[White "Bivol, Alina"]
[Black "Yilmaz, Ezgi"]
[Result "1-0"]
[ECO "B70"]
[WhiteElo "2379"]
[BlackElo "1836"]
[Annotator "NA"]
[PlyCount "77"]
[EventType "team-tourn"]
[EventCountry "TUR"]
[SourceTitle "playchess.com"]
[Source "ChessBase"]
[SourceQuality "1"]
[TimeControl "5400+30"]

1. e4 {[%emt 0:00:30]} c5 {[%emt 0:01:00]} 2. Nf3 {[%emt 0:00:00]} Nc6 {[%emt 0:03:30]} 3. d4 {[%emt 0:05:00]} cxd4 {[%emt 0:00:30]} 4. Nxd4 {[%emt 0:00:00]} Nf6 {[%emt 0:00:30]} 5. Nc3 {[%emt 0:00:00]} g6 {[%emt 0:00:30]} 6. Be2 {[%emt 0:01:30]} Bg7 {[%emt 0:00:30]} 7. Nb3 {[%emt 0:00:00]} d6 {[%emt 0:02:30]} 8. O-O {[%emt 0:02:00]} O-O {[%emt 0:00:30]} 9. Re1 {[%emt 0:00:00]} Be6 {[%emt 0:08:30]} 10. Bf1 {[%emt 0:00:00] LiveBook: 282 Games} Ne5 {[%emt 0:03:30]} 11. Nd5 {[%emt 0:13:30]} Rc8 {[%emt 0:04:30]} 12. Bg5 {[%emt 0:04:30] B70: Sicilian Dragon: 6 g3 and 6 Be2 (without a later Be3)} Nc4 {[%emt 0:05:30]} 13. Bxc4 {[%emt 0:05:30]} Rxc4 {[%emt 0:00:30]} 14. Bxf6 {[%emt 0:00:30] [#]} Bxf6 $146 {[%emt 0:05:30]} ({Predecessor:} 14... exf6 15. c3 Rc8 16. Qd3 f5 17. Nf4 fxe4 18. Qxe4 Rc4 19. Nxe6 Rxe4 20. Nxd8 Rxe1+ 21. Rxe1 Rxd8 {1-0 (55) Nepomniachtchi,I (2730)-Jones,G (2635) Warsaw 2011}) 15. Nxf6+ {[%emt 0:01:30]} exf6 {[%emt 0:00:00]} 16. Qd2 {[%emt 0:00:30]} Qc7 {[%emt 0:08:00]} 17. Nd4 {[%emt 0:04:30]} Qb6 {[%emt 0:05:30]} 18. c3 {[%emt 0:00:30]} Rfc8 {[%emt 0:02:30]} 19. Rad1 {[%emt 0:02:30]} Bg4 {[%emt 0:03:30]} 20. f3 {[%emt 0:00:30]} Bd7 {[%emt 0:00:30]} 21. Kh1 {[%emt 0:01:30]} Kg7 {[%emt 0:01:30]} 22. Ne2 {[%emt 0:03:30]} R8c6 {[%emt 0:02:30]} 23. Nf4 {[%emt 0:00:30]} Qd8 {[%emt 0:08:30]} 24. Re3 {[%emt 0:01:30]} Be6 {[%emt 0:18:24]} 25. Rd3 {[%emt 0:03:30]} Ra4 {[%emt 0:01:12]} 26. b3 {[%emt 0:00:30]} Raa6 {[%emt 0:00:38]} 27. c4 {[%emt 0:02:30]} Qb8 {[%emt 0:02:06]} 28. Ne2 {[%emt 0:00:30]} Bd7 {[%emt 0:01:53]} 29. Nc3 {[%emt 0:00:30]} Qd8 {[%emt 0:02:37]} (29... Rc8 $142 30. a4 (30. Rxd6 Rxd6 31. Qxd6 Qxd6 $16) 30... Re8) 30. Qb2 $18 {[%emt 0:05:30]} Be6 {[%emt 0:02:00]} 31. Nb5 {[%emt 0:02:30]} Qa5 {[%emt 0:00:36]} 32. R3d2 {[%emt 0:00:00]} Qb4 {[%emt 0:00:58]} 33. g3 {[%emt 0:03:00]} Qc5 {[%emt 0:01:13]} 34. Rd3 {[%emt 0:02:30]} Rcb6 {[%emt 0:03:33]} 35. Qd2 {[%emt 0:00:30]} Qh5 {[%emt 0:00:08]} 36. Nc7 {[%emt 0:01:30]} Ra5 {[%emt 0:00:32]} 37. Ne8+ {[%emt 0:01:30]} Kf8 {[%emt 0:02:31]} 38. Nxf6 {[%emt 0:00:30]} Qh3 {[%emt 0:00:05]} 39. Qxa5 {[%emt 0:00:30]} 1-0